[Event "Early-Titled-Tuesday-Blitz-August-29-2023"]
[Site "Chess.com"]
[Date "2023.08.29"]
[Round "3"]
[White "BilodeauA"]
[Black "suyu28"]
[Result "1-0"]
[WhiteElo "2942"]
[BlackElo "2734"]
[TimeControl "180+1"]
[EndTime "8:27:15 PDT"]
[Termination "BilodeauA won by resignation"]

1. e4 {[%clk 0:02:59.9]} 1... c6 {[%clk 0:03:00.2]} 2. d4 {[%clk 0:02:53.5]}
2... d5 {[%clk 0:03:01.1]} 3. exd5 {[%clk 0:02:54.3]} 3... cxd5 {[%clk
0:03:01.2]} 4. Bd3 {[%clk 0:02:55]} 4... Nc6 {[%clk 0:03:01.4]} 5. c3 {[%clk
0:02:55.4]} 5... Qc7 {[%clk 0:03:00.4]} 6. h3 {[%clk 0:02:55.1]} 6... e6 {[%clk
0:03:00.7]} 7. Nf3 {[%clk 0:02:54.3]} 7... Bd6 {[%clk 0:03:01.1]} 8. O-O {[%clk
0:02:53.4]} 8... Nge7 {[%clk 0:03:01.8]} 9. Re1 {[%clk 0:02:52.5]} 9... O-O
{[%clk 0:03:01.9]} 10. b3 {[%clk 0:02:50.4]} 10... Bd7 {[%clk 0:02:57.7]} 11. c4
{[%clk 0:02:49.1]} 11... dxc4 {[%clk 0:02:49.9]} 12. bxc4 {[%clk 0:02:44.3]}
12... Bf4 {[%clk 0:02:49.7]} 13. Nc3 {[%clk 0:02:40.5]} 13... Bxc1 {[%clk
0:02:46.7]} 14. Rxc1 {[%clk 0:02:34.7]} 14... Nb4 {[%clk 0:02:40.5]} 15. Bb1
{[%clk 0:02:25.5]} 15... Ng6 {[%clk 0:02:40.1]} 16. a3 {[%clk 0:02:10.2]} 16...
Na6 {[%clk 0:02:37.9]} 17. Nb5 {[%clk 0:02:05.9]} 17... Qb6 {[%clk 0:02:35.4]}
18. a4 {[%clk 0:02:03.5]} 18... Rfd8 {[%clk 0:02:33]} 19. h4 {[%clk 0:02:01.4]}
19... Bc6 {[%clk 0:02:32.2]} 20. h5 {[%clk 0:01:41.3]} 20... Nf8 {[%clk
0:02:32.2]} 21. h6 {[%clk 0:01:37.9]} 21... g6 {[%clk 0:02:32]} 22. Qe2 {[%clk
0:01:37.7]} 22... Nc7 {[%clk 0:02:25.5]} 23. Nxc7 {[%clk 0:01:06.7]} 23... Qxc7
{[%clk 0:02:25.1]} 24. d5 {[%clk 0:01:06.8]} 24... Bxa4 {[%clk 0:02:16.3]} 25.
Qb2 {[%clk 0:01:05.7]} 25... f5 {[%clk 0:02:13.4]} 26. dxe6 {[%clk 0:01:01.3]}
26... Qe7 {[%clk 0:02:13.4]} 27. Ng5 {[%clk 0:00:53.1]} 27... Bc6 {[%clk
0:01:46.5]} 28. Rcd1 {[%clk 0:00:37.6]} 28... Rxd1 {[%clk 0:01:44.8]} 29. Rxd1
{[%clk 0:00:38.5]} 29... Re8 {[%clk 0:01:37.1]} 30. Re1 {[%clk 0:00:36.9]} 30...
a5 {[%clk 0:01:33.6]} 31. c5 {[%clk 0:00:33.7]} 31... a4 {[%clk 0:01:32.9]} 32.
Nf7 {[%clk 0:00:33.6]} 32... Nxe6 {[%clk 0:01:32.5]} 33. Nd6 {[%clk 0:00:32.5]}
33... Rf8 {[%clk 0:01:21.7]} 34. Rxe6 {[%clk 0:00:31.3]} 1-0

[Event "Early-Titled-Tuesday-Blitz-August-29-2023"]
[Site "Chess.com"]
[Date "2023.08.29"]
[Round "3"]
[White "JoshuaGK27"]
[Black "yuki_chess123"]
[Result "1-0"]
[WhiteElo "2424"]
[BlackElo "2200"]
[TimeControl "180+1"]
[EndTime "8:27:16 PDT"]
[Termination "JoshuaGK27 won by checkmate"]

1. e4 {[%clk 0:03:00]} 1... c5 {[%clk 0:03:00.4]} 2. Nf3 {[%clk 0:03:00.5]} 2...
Nc6 {[%clk 0:03:00.5]} 3. d4 {[%clk 0:02:52]} 3... cxd4 {[%clk 0:03:01.4]} 4.
Nxd4 {[%clk 0:02:52.6]} 4... Nf6 {[%clk 0:03:01.7]} 5. Nc3 {[%clk 0:02:52.9]}
5... d6 {[%clk 0:03:02]} 6. Bg5 {[%clk 0:02:52]} 6... Bd7 {[%clk 0:03:01.6]} 7.
Qd2 {[%clk 0:02:51.2]} 7... Nxd4 {[%clk 0:03:01.5]} 8. Qxd4 {[%clk 0:02:50.5]}
8... Qa5 {[%clk 0:03:00.6]} 9. Bd2 {[%clk 0:02:50.3]} 9... e5 {[%clk 0:02:47.6]}
10. Qd3 {[%clk 0:02:48.3]} 10... Qb6 {[%clk 0:02:35.8]} 11. O-O-O {[%clk
0:02:46.1]} 11... Qxf2 {[%clk 0:02:22.1]} 12. Be3 {[%clk 0:02:22.4]} 12... Qh4
{[%clk 0:02:19.8]} 13. Nb5 {[%clk 0:01:41.9]} 13... Bxb5 {[%clk 0:02:05.6]} 14.
Qxb5+ {[%clk 0:01:42.8]} 14... Nd7 {[%clk 0:02:06]} 15. Qxb7 {[%clk 0:01:40.2]}
15... Rb8 {[%clk 0:02:04.8]} 16. Qd5 {[%clk 0:01:37.1]} 16... Be7 {[%clk
0:01:58.8]} 17. Bb5 {[%clk 0:01:32]} 17... Rxb5 {[%clk 0:01:53.9]} 18. Qxb5
{[%clk 0:01:29.3]} 18... Bg5 {[%clk 0:01:32.5]} 19. Bxg5 {[%clk 0:01:24.3]}
19... Qxg5+ {[%clk 0:01:33.4]} 20. Kb1 {[%clk 0:01:24.6]} 20... Ke7 {[%clk
0:01:29.5]} 21. g3 {[%clk 0:01:18.7]} 21... Rb8 {[%clk 0:01:28]} 22. Qd5 {[%clk
0:01:18.5]} 22... Qg6 {[%clk 0:01:23.7]} 23. Rhf1 {[%clk 0:01:14.8]} 23... Rb6
{[%clk 0:01:17.1]} 24. a4 {[%clk 0:01:02.4]} 24... Nc5 {[%clk 0:01:06.9]} 25. a5
{[%clk 0:00:52.5]} 25... Rb5 {[%clk 0:01:02.5]} 26. Rxf7+ {[%clk 0:00:46.1]}
26... Qxf7 {[%clk 0:00:49.2]} 27. Qxd6+ {[%clk 0:00:46.1]} 27... Ke8 {[%clk
0:00:44.9]} 28. Qd8# {[%clk 0:00:46.8]} 1-0

[Event "Early-Titled-Tuesday-Blitz-August-29-2023"]
[Site "Chess.com"]
[Date "2023.08.29"]
[Round "3"]
[White "madmax011"]
[Black "Jackalhead_Anubis"]
[Result "1-0"]
[WhiteElo "2295"]
[BlackElo "2451"]
[TimeControl "180+1"]
[EndTime "8:27:17 PDT"]
[Termination "madmax011 won by checkmate"]

1. d4 {[%clk 0:03:00.9]} 1... Nf6 {[%clk 0:02:56.7]} 2. c4 {[%clk 0:03:00.7]}
2... e6 {[%clk 0:02:57]} 3. Nc3 {[%clk 0:03:00.8]} 3... Bb4 {[%clk 0:02:57.6]}
4. Qc2 {[%clk 0:03:01.2]} 4... c5 {[%clk 0:02:55.6]} 5. dxc5 {[%clk 0:03:00]}
5... O-O {[%clk 0:02:54.5]} 6. a3 {[%clk 0:02:59.1]} 6... Bxc5 {[%clk
0:02:52.1]} 7. b4 {[%clk 0:02:59.2]} 7... Bd4 {[%clk 0:02:51.1]} 8. Nf3 {[%clk
0:02:59.1]} 8... Nc6 {[%clk 0:02:50.1]} 9. e3 {[%clk 0:02:58.1]} 9... Be5 {[%clk
0:02:47.5]} 10. Nxe5 {[%clk 0:02:56.2]} 10... Nxe5 {[%clk 0:02:48.4]} 11. Bb2
{[%clk 0:02:56.7]} 11... Qc7 {[%clk 0:02:46.7]} 12. c5 {[%clk 0:02:51.9]} 12...
a6 {[%clk 0:02:43.3]} 13. Be2 {[%clk 0:02:39.6]} 13... Ng6 {[%clk 0:02:21.3]}
14. O-O {[%clk 0:02:31.5]} 14... d5 {[%clk 0:02:20.4]} 15. cxd6 {[%clk
0:02:30.5]} 15... Qxd6 {[%clk 0:02:19]} 16. Rfd1 {[%clk 0:02:30.6]} 16... Qc7
{[%clk 0:02:14.2]} 17. Rac1 {[%clk 0:02:22.8]} 17... Kh8 {[%clk 0:01:57.6]} 18.
Qb3 {[%clk 0:02:18.1]} 18... Qe7 {[%clk 0:01:54.8]} 19. Na4 {[%clk 0:02:05.7]}
19... Nd5 {[%clk 0:01:54.2]} 20. Bf3 {[%clk 0:02:03.2]} 20... b5 {[%clk
0:01:42.7]} 21. Nc5 {[%clk 0:01:44.9]} 21... Rb8 {[%clk 0:01:33.1]} 22. Bxd5
{[%clk 0:01:39.5]} 22... exd5 {[%clk 0:01:34]} 23. Qxd5 {[%clk 0:01:38.9]} 23...
Bg4 {[%clk 0:01:33.8]} 24. Qd4 {[%clk 0:01:10.3]} 24... f5 {[%clk 0:01:32.7]}
25. f3 {[%clk 0:00:59.2]} 25... Rbd8 {[%clk 0:01:31.4]} 26. Qc3 {[%clk
0:00:50.7]} 26... Rxd1+ {[%clk 0:01:28.2]} 27. Rxd1 {[%clk 0:00:50.3]} 27... Bh5
{[%clk 0:01:28.6]} 28. Ne6 {[%clk 0:00:43.7]} 28... Rg8 {[%clk 0:01:24.4]} 29.
Nxg7 {[%clk 0:00:34.9]} 29... Rxg7 {[%clk 0:01:22.1]} 30. Qxg7+ {[%clk
0:00:32.8]} 30... Qxg7 {[%clk 0:01:19.9]} 31. Rd8+ {[%clk 0:00:33]} 31... Nf8
{[%clk 0:01:19.5]} 32. Rxf8# {[%clk 0:00:33.2]} 1-0

[Event "Early-Titled-Tuesday-Blitz-August-29-2023"]
[Site "Chess.com"]
[Date "2023.08.29"]
[Round "3"]
[White "Kostya0705"]
[Black "Boundless_Strike"]
[Result "0-1"]
[WhiteElo "2653"]
[BlackElo "2506"]
[TimeControl "180+1"]
[EndTime "8:27:20 PDT"]
[Termination "Boundless_Strike won by resignation"]

1. e4 {[%clk 0:03:00.9]} 1... d6 {[%clk 0:02:55.6]} 2. d4 {[%clk 0:02:56.7]}
2... e5 {[%clk 0:02:55.8]} 3. Nf3 {[%clk 0:02:53.3]} 3... Bg4 {[%clk 0:02:55.5]}
4. dxe5 {[%clk 0:02:46.5]} 4... Nc6 {[%clk 0:02:55.3]} 5. exd6 {[%clk
0:02:43.2]} 5... Bxd6 {[%clk 0:02:54.6]} 6. Be2 {[%clk 0:02:44.1]} 6... Qe7
{[%clk 0:02:54.5]} 7. h3 {[%clk 0:02:38.7]} 7... Bh5 {[%clk 0:02:54.4]} 8. Nbd2
{[%clk 0:02:31.5]} 8... O-O-O {[%clk 0:02:53.7]} 9. c3 {[%clk 0:02:29.9]} 9...
Nf6 {[%clk 0:02:51.3]} 10. Qc2 {[%clk 0:02:29.4]} 10... Rhe8 {[%clk 0:02:47.4]}
11. O-O {[%clk 0:02:26]} 11... Nxe4 {[%clk 0:02:44.5]} 12. Nxe4 {[%clk
0:02:26.5]} 12... Qxe4 {[%clk 0:02:45.1]} 13. Bd3 {[%clk 0:02:26.8]} 13... Qd5
{[%clk 0:02:13.8]} 14. Bxh7 {[%clk 0:02:06.5]} 14... g6 {[%clk 0:01:58.9]} 15.
Bg5 {[%clk 0:01:59.8]} 15... Bxf3 {[%clk 0:01:44.3]} 16. Bxd8 {[%clk 0:01:58.2]}
16... Qe5 {[%clk 0:01:32.1]} 17. g3 {[%clk 0:01:54.2]} 17... Rxd8 {[%clk
0:01:09.7]} 18. Rfe1 {[%clk 0:01:51]} 18... Qh5 {[%clk 0:01:08.9]} 19. Re3
{[%clk 0:01:32.5]} 19... Ne5 {[%clk 0:01:05.6]} 20. h4 {[%clk 0:01:23.5]} 20...
Qg4 {[%clk 0:00:40.6]} 21. Kh2 {[%clk 0:01:09.6]} 21... Rh8 {[%clk 0:00:38.8]}
22. Qd2 {[%clk 0:00:48.2]} 22... Rxh7 {[%clk 0:00:33.8]} 23. Qd4 {[%clk
0:00:48.3]} 23... Rxh4+ {[%clk 0:00:33.4]} 0-1

[Event "Early-Titled-Tuesday-Blitz-August-29-2023"]
[Site "Chess.com"]
[Date "2023.08.29"]
[Round "3"]
[White "SaqoChess_Twitch"]
[Black "Tsyhanchuk_Stanislav"]
[Result "1-0"]
[WhiteElo "2617"]
[BlackElo "2425"]
[TimeControl "180+1"]
[EndTime "8:27:20 PDT"]
[Termination "SaqoChess_Twitch won by resignation"]

1. d4 {[%clk 0:03:00.9]} 1... Nf6 {[%clk 0:02:59.9]} 2. c4 {[%clk 0:03:01.2]}
2... e6 {[%clk 0:03:00]} 3. Nc3 {[%clk 0:03:00.8]} 3... Bb4 {[%clk 0:02:59.6]}
4. a3 {[%clk 0:03:00.4]} 4... Bxc3+ {[%clk 0:02:59.5]} 5. bxc3 {[%clk
0:03:01.3]} 5... O-O {[%clk 0:02:57.4]} 6. e3 {[%clk 0:03:01.6]} 6... b6 {[%clk
0:02:56.7]} 7. Bd3 {[%clk 0:03:02]} 7... Bb7 {[%clk 0:02:56.4]} 8. f3 {[%clk
0:03:00.9]} 8... Nh5 {[%clk 0:02:49.8]} 9. Nh3 {[%clk 0:03:00.3]} 9... f5 {[%clk
0:02:47.7]} 10. O-O {[%clk 0:02:59.9]} 10... d6 {[%clk 0:02:45.7]} 11. a4 {[%clk
0:02:59.6]} 11... c5 {[%clk 0:02:35.4]} 12. a5 {[%clk 0:02:57.7]} 12... Nc6
{[%clk 0:02:20.2]} 13. axb6 {[%clk 0:02:56.8]} 13... axb6 {[%clk 0:02:18.7]} 14.
Rxa8 {[%clk 0:02:56.6]} 14... Bxa8 {[%clk 0:02:19.3]} 15. d5 {[%clk 0:02:48.7]}
15... exd5 {[%clk 0:02:14.8]} 16. cxd5 {[%clk 0:02:49.6]} 16... Ne5 {[%clk
0:02:14.3]} 17. Be2 {[%clk 0:02:40.7]} 17... Nf6 {[%clk 0:02:13.1]} 18. c4
{[%clk 0:02:38.4]} 18... h6 {[%clk 0:01:58.9]} 19. Nf4 {[%clk 0:02:36.5]} 19...
Re8 {[%clk 0:01:51.9]} 20. Ne6 {[%clk 0:02:36.3]} 20... Qe7 {[%clk 0:01:51.9]}
21. Bb2 {[%clk 0:02:26.5]} 21... Ned7 {[%clk 0:01:47.4]} 22. e4 {[%clk
0:02:17.9]} 22... fxe4 {[%clk 0:01:41]} 23. fxe4 {[%clk 0:02:17.1]} 23... Nf8
{[%clk 0:01:35.1]} 24. Bxf6 {[%clk 0:02:00.9]} 24... gxf6 {[%clk 0:01:36]} 25.
Bg4 {[%clk 0:02:00.9]} 25... Bb7 {[%clk 0:01:27.1]} 26. Nxf8 {[%clk 0:01:59]}
26... Rxf8 {[%clk 0:01:19.7]} 27. Be6+ {[%clk 0:01:59.2]} 27... Kh8 {[%clk
0:01:19.4]} 28. Qh5 {[%clk 0:01:57.2]} 28... Qg7 {[%clk 0:01:05.9]} 29. Rf3
{[%clk 0:01:56.5]} 29... Qg5 {[%clk 0:01:05.8]} 30. Qxg5 {[%clk 0:01:50.3]}
30... hxg5 {[%clk 0:01:06.7]} 31. Rb3 {[%clk 0:01:50.8]} 31... Bc8 {[%clk
0:00:53.1]} 32. Bxc8 {[%clk 0:01:45.3]} 32... Rxc8 {[%clk 0:00:54]} 33. Rxb6
{[%clk 0:01:45.9]} 33... Rd8 {[%clk 0:00:53.4]} 34. Kf2 {[%clk 0:01:45.5]} 34...
Kg7 {[%clk 0:00:50.3]} 35. Kf3 {[%clk 0:01:42.7]} 35... Kf7 {[%clk 0:00:49.5]}
36. h3 {[%clk 0:01:42.7]} 36... Ke7 {[%clk 0:00:48.3]} 37. Rb7+ {[%clk
0:01:42.7]} 37... Kf8 {[%clk 0:00:32.1]} 38. Kg4 {[%clk 0:01:40.8]} 38... Re8
{[%clk 0:00:26.8]} 39. Kf5 {[%clk 0:01:39.4]} 1-0

[Event "Early-Titled-Tuesday-Blitz-August-29-2023"]
[Site "Chess.com"]
[Date "2023.08.29"]
[Round "3"]
[White "YEIKO2017"]
[Black "Dedic8"]
[Result "0-1"]
[WhiteElo "2456"]
[BlackElo "2829"]
[TimeControl "180+1"]
[EndTime "8:27:21 PDT"]
[Termination "Dedic8 won by resignation"]

1. e4 {[%clk 0:03:00.9]} 1... e5 {[%clk 0:02:59.8]} 2. Nf3 {[%clk 0:03:00.9]}
2... Nc6 {[%clk 0:03:00.1]} 3. Bb5 {[%clk 0:03:00.9]} 3... a6 {[%clk 0:03:00.7]}
4. Ba4 {[%clk 0:03:00.8]} 4... Nf6 {[%clk 0:03:01.4]} 5. d4 {[%clk 0:03:00.9]}
5... exd4 {[%clk 0:02:50.4]} 6. O-O {[%clk 0:03:00.3]} 6... Be7 {[%clk
0:02:46.5]} 7. Re1 {[%clk 0:03:00.1]} 7... O-O {[%clk 0:02:38.8]} 8. e5 {[%clk
0:03:00.3]} 8... Nd5 {[%clk 0:02:38.1]} 9. Nxd4 {[%clk 0:03:00.4]} 9... Nb6
{[%clk 0:02:15.5]} 10. Bb3 {[%clk 0:02:59]} 10... d5 {[%clk 0:02:14]} 11. c3
{[%clk 0:02:49.5]} 11... Nxd4 {[%clk 0:02:10.1]} 12. cxd4 {[%clk 0:02:48.9]}
12... c5 {[%clk 0:02:10.6]} 13. dxc5 {[%clk 0:02:44.2]} 13... Bxc5 {[%clk
0:02:10.5]} 14. Nc3 {[%clk 0:02:43.6]} 14... Be6 {[%clk 0:02:09.2]} 15. Bc2
{[%clk 0:02:39.2]} 15... Qh4 {[%clk 0:02:01.1]} 16. Qf3 {[%clk 0:02:04.7]} 16...
f6 {[%clk 0:01:49.7]} 17. g3 {[%clk 0:01:30.6]} 17... fxe5 {[%clk 0:01:49.9]}
18. Qxf8+ {[%clk 0:01:29.2]} 18... Rxf8 {[%clk 0:01:50.8]} 19. gxh4 {[%clk
0:01:25.7]} 19... Bxf2+ {[%clk 0:01:51.4]} 20. Kf1 {[%clk 0:01:07.3]} 20... Bh3+
{[%clk 0:01:51.4]} 21. Ke2 {[%clk 0:01:07.2]} 21... Bg4+ {[%clk 0:01:52.1]} 22.
Kf1 {[%clk 0:00:59.6]} 22... Bxh4+ {[%clk 0:01:51.8]} 23. Kg2 {[%clk 0:00:53.4]}
23... Bxe1 {[%clk 0:01:41.1]} 24. Be3 {[%clk 0:00:53.4]} 24... Bh3+ {[%clk
0:01:04]} 25. Kxh3 {[%clk 0:00:40.2]} 25... Rf3+ {[%clk 0:01:04]} 26. Kg2 {[%clk
0:00:31.1]} 26... Rxe3 {[%clk 0:01:04.9]} 27. Nd1 {[%clk 0:00:25.1]} 27... Re2+
{[%clk 0:01:04.1]} 0-1

[Event "Early-Titled-Tuesday-Blitz-August-29-2023"]
[Site "Chess.com"]
[Date "2023.08.29"]
[Round "3"]
[White "Jackleterrible"]
[Black "Xavier_mompel"]
[Result "1-0"]
[WhiteElo "2497"]
[BlackElo "2302"]
[TimeControl "180+1"]
[EndTime "8:27:21 PDT"]
[Termination "Jackleterrible won by resignation"]

1. e4 {[%clk 0:03:00.9]} 1... c5 {[%clk 0:03:00.3]} 2. Nf3 {[%clk 0:03:00.9]}
2... e6 {[%clk 0:03:00.4]} 3. d4 {[%clk 0:03:01.4]} 3... cxd4 {[%clk 0:03:01.3]}
4. Nxd4 {[%clk 0:03:02.3]} 4... Nc6 {[%clk 0:03:01.8]} 5. Nc3 {[%clk 0:03:02.5]}
5... Qc7 {[%clk 0:03:02.2]} 6. Be3 {[%clk 0:03:02.5]} 6... a6 {[%clk 0:03:02.1]}
7. Qf3 {[%clk 0:03:03]} 7... b5 {[%clk 0:02:59.4]} 8. Nxc6 {[%clk 0:02:59.6]}
8... Qxc6 {[%clk 0:03:00.3]} 9. O-O-O {[%clk 0:02:59.9]} 9... Bb7 {[%clk
0:03:00]} 10. Bd3 {[%clk 0:02:58.8]} 10... Nf6 {[%clk 0:03:00.1]} 11. Bd4 {[%clk
0:02:57.2]} 11... Be7 {[%clk 0:02:55.5]} 12. Qg3 {[%clk 0:02:52.5]} 12... O-O
{[%clk 0:02:50.6]} 13. e5 {[%clk 0:02:41.6]} 13... Nh5 {[%clk 0:02:32.4]} 14.
Qg4 {[%clk 0:02:34]} 14... g6 {[%clk 0:02:31.6]} 15. Be4 {[%clk 0:02:23.6]}
15... Qc7 {[%clk 0:02:28.5]} 16. Bxb7 {[%clk 0:02:23.5]} 16... Qxb7 {[%clk
0:02:29.4]} 17. Ne4 {[%clk 0:02:23.9]} 17... Rac8 {[%clk 0:02:19.7]} 18. Kb1
{[%clk 0:02:10.1]} 18... Qc6 {[%clk 0:02:14.8]} 19. c3 {[%clk 0:02:04.7]} 19...
f5 {[%clk 0:01:46.9]} 20. exf6 {[%clk 0:02:02.1]} 20... Nxf6 {[%clk 0:01:46.5]}
21. Bxf6 {[%clk 0:01:56.1]} 21... Bxf6 {[%clk 0:01:46.4]} 22. Rd6 {[%clk
0:01:55.9]} 22... Qb7 {[%clk 0:01:31.2]} 23. Rhd1 {[%clk 0:01:55.4]} 23... Rcd8
{[%clk 0:01:20.9]} 24. Nc5 {[%clk 0:01:37.3]} 24... Qc7 {[%clk 0:00:32.4]} 25.
Nxd7 {[%clk 0:01:36.1]} 25... Kg7 {[%clk 0:00:25.7]} 26. Nxf8 {[%clk 0:01:31.6]}
26... Rxd6 {[%clk 0:00:19.6]} 27. Nxe6+ {[%clk 0:01:31.8]} 27... Rxe6 {[%clk
0:00:18.6]} 28. Qxe6 {[%clk 0:01:32.7]} 28... Qf4 {[%clk 0:00:15]} 29. Qd7+
{[%clk 0:01:21.5]} 29... Kh6 {[%clk 0:00:13.3]} 30. Qd2 {[%clk 0:01:21]} 1-0

[Event "Early-Titled-Tuesday-Blitz-August-29-2023"]
[Site "Chess.com"]
[Date "2023.08.29"]
[Round "3"]
[White "frequentblunders"]
[Black "ChainedDowntohell"]
[Result "0-1"]
[WhiteElo "2126"]
[BlackElo "2534"]
[TimeControl "180+1"]
[EndTime "8:27:22 PDT"]
[Termination "ChainedDowntohell won by resignation"]

1. d3 {[%clk 0:02:31.9]} 1... Nf6 {[%clk 0:02:57.7]} 2. Nf3 {[%clk 0:02:30.1]}
2... d5 {[%clk 0:02:57.6]} 3. g3 {[%clk 0:02:31]} 3... Bg4 {[%clk 0:02:55.4]} 4.
Nbd2 {[%clk 0:02:31.9]} 4... Nbd7 {[%clk 0:02:53.7]} 5. Bg2 {[%clk 0:02:32.4]}
5... e5 {[%clk 0:02:53.5]} 6. O-O {[%clk 0:02:32.4]} 6... c6 {[%clk 0:02:53.1]}
7. e4 {[%clk 0:02:33.1]} 7... dxe4 {[%clk 0:02:53.2]} 8. dxe4 {[%clk 0:02:34]}
8... Bc5 {[%clk 0:02:50.4]} 9. h3 {[%clk 0:02:34.3]} 9... Bh5 {[%clk 0:02:49.5]}
10. Qe2 {[%clk 0:02:31.2]} 10... O-O {[%clk 0:02:48.1]} 11. c3 {[%clk
0:02:29.6]} 11... a5 {[%clk 0:02:47.7]} 12. a4 {[%clk 0:02:23.1]} 12... Qc7
{[%clk 0:02:46.3]} 13. g4 {[%clk 0:02:22.6]} 13... Bg6 {[%clk 0:02:45.9]} 14.
Nc4 {[%clk 0:02:21.3]} 14... Ne8 {[%clk 0:02:37.6]} 15. Be3 {[%clk 0:02:20.7]}
15... Bxe3 {[%clk 0:02:29]} 16. Qxe3 {[%clk 0:02:21.6]} 16... Nd6 {[%clk
0:02:26.2]} 17. Nfd2 {[%clk 0:02:20.1]} 17... Rfd8 {[%clk 0:02:21.5]} 18. Rfd1
{[%clk 0:02:15.7]} 18... Nxc4 {[%clk 0:01:56]} 19. Nxc4 {[%clk 0:02:15.2]} 19...
Nf8 {[%clk 0:01:55.8]} 20. f3 {[%clk 0:01:49.5]} 20... Ne6 {[%clk 0:01:54.6]}
21. Bf1 {[%clk 0:01:49.7]} 21... b5 {[%clk 0:01:35.7]} 22. Na3 {[%clk
0:01:37.5]} 22... b4 {[%clk 0:01:34.4]} 23. Nc4 {[%clk 0:01:30.6]} 23... Rab8
{[%clk 0:01:25.8]} 24. Rd2 {[%clk 0:01:15.6]} 24... Rxd2 {[%clk 0:01:21.5]} 25.
Qxd2 {[%clk 0:01:16.5]} 25... bxc3 {[%clk 0:01:21.3]} 26. Qxc3 {[%clk
0:01:16.1]} 26... Nd4 {[%clk 0:01:16.6]} 27. Kf2 {[%clk 0:01:14.5]} 27... Rb3
{[%clk 0:01:09.3]} 28. Qxa5 {[%clk 0:01:11.3]} 28... Rxf3+ {[%clk 0:00:59.1]}
29. Kg1 {[%clk 0:01:00.2]} 29... Qxa5 {[%clk 0:00:49.9]} 30. Nxa5 {[%clk
0:01:00.9]} 30... Bxe4 {[%clk 0:00:49.4]} 31. Bg2 {[%clk 0:00:56.3]} 31... Rg3
{[%clk 0:00:49.3]} 0-1

[Event "Early-Titled-Tuesday-Blitz-August-29-2023"]
[Site "Chess.com"]
[Date "2023.08.29"]
[Round "3"]
[White "AlejandroArias"]
[Black "Giorno"]
[Result "1-0"]
[WhiteElo "2304"]
[BlackElo "2467"]
[TimeControl "180+1"]
[EndTime "8:27:22 PDT"]
[Termination "AlejandroArias won by checkmate"]

1. e4 {[%clk 0:03:00.9]} 1... c5 {[%clk 0:02:00.7]} 2. Nf3 {[%clk 0:02:59.6]}
2... e6 {[%clk 0:01:56.9]} 3. g3 {[%clk 0:02:59.4]} 3... Nc6 {[%clk 0:01:56.6]}
4. Bg2 {[%clk 0:02:59]} 4... d5 {[%clk 0:01:46.7]} 5. exd5 {[%clk 0:02:58.6]}
5... exd5 {[%clk 0:01:47.2]} 6. d4 {[%clk 0:02:58.8]} 6... Nf6 {[%clk
0:01:46.6]} 7. O-O {[%clk 0:02:57.9]} 7... Be7 {[%clk 0:01:41.1]} 8. dxc5 {[%clk
0:02:55.9]} 8... O-O {[%clk 0:01:39.3]} 9. Nc3 {[%clk 0:02:55.9]} 9... Bxc5
{[%clk 0:01:37]} 10. Bg5 {[%clk 0:02:51]} 10... d4 {[%clk 0:01:32.7]} 11. Ne4
{[%clk 0:02:43.5]} 11... Be7 {[%clk 0:01:32]} 12. Bxf6 {[%clk 0:02:42.6]} 12...
Bxf6 {[%clk 0:01:32.9]} 13. Ne1 {[%clk 0:02:43.1]} 13... Re8 {[%clk 0:01:29]}
14. Nd3 {[%clk 0:02:39.7]} 14... Bf5 {[%clk 0:01:28.4]} 15. Nec5 {[%clk
0:02:36.4]} 15... Qb6 {[%clk 0:01:26.4]} 16. Qf3 {[%clk 0:02:24.5]} 16... Bxd3
{[%clk 0:01:22.8]} 17. Nxd3 {[%clk 0:02:24.1]} 17... Re7 {[%clk 0:01:19]} 18.
Rfe1 {[%clk 0:02:22.4]} 18... Rae8 {[%clk 0:01:17.4]} 19. Rxe7 {[%clk
0:02:20.8]} 19... Rxe7 {[%clk 0:01:17.4]} 20. h4 {[%clk 0:02:10.9]} 20... Ne5
{[%clk 0:01:11]} 21. Nxe5 {[%clk 0:02:05.1]} 21... Qxb2 {[%clk 0:01:09.1]} 22.
Re1 {[%clk 0:01:46]} 22... Rxe5 {[%clk 0:01:08.1]} 23. Rxe5 {[%clk 0:01:39.4]}
23... Bxe5 {[%clk 0:01:09]} 24. Qf5 {[%clk 0:01:38.8]} 24... Bd6 {[%clk
0:00:31.8]} 25. Bd5 {[%clk 0:01:38]} 25... h6 {[%clk 0:00:07.9]} 26. Qxf7+
{[%clk 0:01:26.6]} 26... Kh7 {[%clk 0:00:08.1]} 27. Be4+ {[%clk 0:01:25.2]}
27... Kh8 {[%clk 0:00:07.7]} 28. Qe8+ {[%clk 0:01:25.1]} 28... Bf8 {[%clk
0:00:07.8]} 29. Qxf8# {[%clk 0:01:25.1]} 1-0

[Event "Early-Titled-Tuesday-Blitz-August-29-2023"]
[Site "Chess.com"]
[Date "2023.08.29"]
[Round "3"]
[White "matagordo"]
[Black "ProfessorChess101"]
[Result "0-1"]
[WhiteElo "2162"]
[BlackElo "2416"]
[TimeControl "180+1"]
[EndTime "8:27:28 PDT"]
[Termination "ProfessorChess101 won by resignation"]

1. d4 {[%clk 0:03:00.9]} 1... g6 {[%clk 0:02:58.3]} 2. Bf4 {[%clk 0:02:59.8]}
2... Bg7 {[%clk 0:02:58.5]} 3. Nc3 {[%clk 0:02:58.2]} 3... c5 {[%clk 0:02:58.5]}
4. d5 {[%clk 0:02:58.2]} 4... d6 {[%clk 0:02:56.1]} 5. e4 {[%clk 0:02:58.2]}
5... Nf6 {[%clk 0:02:55.8]} 6. Bb5+ {[%clk 0:02:54.4]} 6... Nbd7 {[%clk
0:02:53.4]} 7. a4 {[%clk 0:02:54.4]} 7... O-O {[%clk 0:02:53.1]} 8. h3 {[%clk
0:02:53.9]} 8... a6 {[%clk 0:02:53]} 9. Be2 {[%clk 0:02:53.5]} 9... Qa5 {[%clk
0:02:53.5]} 10. Qd2 {[%clk 0:02:22.7]} 10... Qb4 {[%clk 0:02:51.6]} 11. Bd3
{[%clk 0:01:48.5]} 11... c4 {[%clk 0:02:26.5]} 12. Be2 {[%clk 0:01:38.8]} 12...
Nc5 {[%clk 0:02:25.8]} 13. Bf3 {[%clk 0:01:30.3]} 13... Nh5 {[%clk 0:02:14.1]}
14. Be3 {[%clk 0:01:13.9]} 14... Qxb2 {[%clk 0:02:11.4]} 15. Nd1 {[%clk
0:00:37.4]} 15... Qxa1 {[%clk 0:01:48.6]} 16. Bxh5 {[%clk 0:00:37.1]} 16... gxh5
{[%clk 0:01:48.4]} 17. Ne2 {[%clk 0:00:37.7]} 17... Nxe4 {[%clk 0:01:47.4]} 18.
Qb4 {[%clk 0:00:29.6]} 18... Qf6 {[%clk 0:01:28]} 19. O-O {[%clk 0:00:26.3]}
19... b5 {[%clk 0:01:24.5]} 20. axb5 {[%clk 0:00:20]} 20... axb5 {[%clk
0:01:25.4]} 21. Qxb5 {[%clk 0:00:20.5]} 21... c3 {[%clk 0:01:22.2]} 22. Qc4
{[%clk 0:00:19.5]} 22... Ba6 {[%clk 0:01:19.3]} 23. Qxe4 {[%clk 0:00:18.6]}
23... Bxe2 {[%clk 0:01:20.2]} 24. Re1 {[%clk 0:00:18.6]} 24... Ra1 {[%clk
0:01:18.1]} 25. Rxe2 {[%clk 0:00:15.2]} 25... Rxd1+ {[%clk 0:01:18.7]} 26. Kh2
{[%clk 0:00:15.9]} 26... Qe5+ {[%clk 0:01:19.6]} 27. Bf4 {[%clk 0:00:15.4]}
27... Qxe4 {[%clk 0:01:19.6]} 28. Rxe4 {[%clk 0:00:16.3]} 28... Rxd5 {[%clk
0:01:19.9]} 29. Rxe7 {[%clk 0:00:16.1]} 29... Be5 {[%clk 0:01:19]} 30. g3 {[%clk
0:00:12.3]} 30... Bxf4 {[%clk 0:01:18.8]} 31. gxf4 {[%clk 0:00:13.2]} 31... Rd2
{[%clk 0:01:19.5]} 0-1